bitfinex-derivatives/quotes_ETHF0:USTF0_20251211
["timestamp","ask_amount","ask_price","bid_price","bid_amount"]
[1765497002668,1.89555336,3237.5,3237.4,4.80051]
[1765497002862,0.74205336,3237.5,3237.4,4.80051]
[1765497003765,0.00695336,3237.5,3237.4,4.80051]
[1765497003965,0.74205336,3237.5,3237.4,4.80051]
[1765497004160,1.47765336,3237.5,3237.4,4.80051]
[1765497004964,0.00695336,3237.5,3237.4,4.80051]
[1765497005563,0.74205336,3237.5,3237.4,4.80051]
[1765497005966,0.00695336,3237.5,3237.4,4.80051]
[1765497013976,0.74205336,3237.5,3237.4,4.80051]
[1765497014475,1.47765336,3237.5,3237.4,4.80051]
[1765497014775,0.00695336,3237.5,3237.4,4.80051]
[1765497017767,1.80195336,3237.5,3237.4,4.80051]
[1765497018079,1.80195336,3237.5,3237.4,0.15441]
[1765497018876,3.20243438,3237.5,3237.4,0.15441]
[1765497023674,1.80195336,3237.5,3237.4,1.60731]
[1765497024070,0.00695336,3237.5,3237.4,3.00779102]
[1765497024270,0.00695336,3237.5,3237.4,1.60731]
[1765497024576,0.00695336,3237.5,3237.4,3.00779102]
[1765497025480,0.00695336,3237.5,3237.4,1.60731]
[1765497027384,0.00695336,3237.5,3237.4,3.00779102]
[1765497030783,4.60828102,3238.9,3238.1,1.4529]
[1765497030973,1.40048102,3238.7,3238.1,4.6607]
[1765497031681,2.85854555,3238.7,3238.6,0.15435]
[1765497031875,2.85854555,3238.7,3238.6,0.15820362]
[1765497034585,1.45806453,3238.7,3238.6,1.61110362]
[1765497035989,1.45806453,3238.7,3238.6,0.85130362]
[1765497036483,0.00836453,3238.7,3238.6,3.01158464]
[1765497036790,0.00836453,3238.7,3238.6,1.61110362]
[1765497038983,0.00836453,3238.7,3238.6,3.01158464]
[1765497039191,0.00836453,3238.7,3238.6,1.61110362]
[1765497039392,0.70456453,3238.7,3238.6,1.61110362]
[1765497039885,0.00836453,3238.7,3238.6,1.61110362]
[1765497041689,0.00836453,3238.7,3238.6,3.01158464]
[1765497042986,0.00836453,3238.7,3238.6,1.61110362]
[1765497043793,1.45806453,3238.7,3238.6,1.61110362]
[1765497045796,1.45806453,3238.7,3238.6,0.85130362]
[1765497046192,1.45806453,3238.7,3238.6,1.61110362]
[1765497050498,1.45216453,3238.7,3238.6,1.61110362]
[1765497052101,0.70346453,3238.7,3238.6,1.61110362]
[1765497052298,1.45106453,3238.7,3238.6,1.61110362]
[1765497052600,0.70346453,3238.7,3238.6,1.61110362]
[1765497052796,0.00836453,3238.7,3238.6,1.61110362]
[1765497054206,1.45106453,3238.7,3238.6,1.61110362]
[1765497054904,0.70346453,3238.7,3238.6,1.61110362]
[1765497055403,1.45106453,3238.7,3238.6,1.61110362]
[1765497056299,0.00836453,3238.7,3238.6,1.61110362]
[1765497057104,0.00836453,3238.7,3238.6,3.0088482]
[1765497059100,0.00463291,3238.7,3238.6,3.0088482]
[1765497059404,3.2078,3239.4,3239.3,0.15432]
[1765497059405,1.4427,3239.4,3239.3,0.15432]
[1765497060203,4.65267624,3239.4,3239.3,0.15432]
[1765497061211,10.65267624,3239.4,3239.3,0.15432]
[1765497061405,1.4427,3238.7,3238.6,1.44055362]
[1765497062613,0.6951,3238.7,3238.6,1.59490362]
[1765497062808,1.8709,3239.0,3238.9,1.59104]
[1765497063014,0.6951,3239.0,3238.9,1.59104]
[1765497063218,1.8709,3239.0,3238.9,1.59104]
[1765497066223,1.8709,3239.0,3238.9,0.88224]
[1765497068024,1.8709,3239.0,3238.9,0.15434]
[1765497069921,1.8709,3239.0,3238.9,0.88224]
[1765497075524,1.8709,3239.0,3238.9,1.59104]
[1765497076130,1.8709,3239.0,3238.9,0.88224]
[1765497076329,1.8709,3239.0,3238.9,1.64034]
[1765497078131,1.8709,3239.0,3238.9,0.88224]
[1765497078631,1.8709,3239.0,3238.9,0.85594]
[1765497083435,4.6999,3239.2,3239.1,0.84163]
[1765497083634,3.9556,3239.2,3239.1,1.54723]
[1765497083828,3.2078,3239.2,3239.1,1.54723]
[1765497084134,3.9556,3239.2,3239.1,1.54723]
[1765497085227,4.6999,3239.2,3239.1,1.54723]
[1765497089226,3.9556,3239.2,3239.1,1.54723]
[1765497089426,4.6999,3239.2,3239.1,1.54723]
[1765497091034,3.9556,3239.2,3239.1,1.54723]
[1765497091542,3.2078,3239.2,3239.1,1.54723]
[1765497091742,0.00217624,3239.4,3239.3,1.54722]
[1765497091933,0.00217624,3239.4,3239.3,4.75502]
[1765497092633,1.49427624,3239.4,3239.3,4.75502]
[1765497095742,0.74997624,3239.4,3239.3,4.75502]
[1765497096342,1.9056,3240.0,3239.9,0.15429]
[1765497096534,3.30334458,3240.0,3239.9,0.15429]
[1765497096939,1.4921,3239.4,3239.3,3.2078]
[1765497097242,1.49555408,3239.4,3239.3,3.8951]
[1765497097642,2.89329866,3239.4,3239.3,0.15432]
[1765497102551,1.49555408,3239.4,3239.3,0.15432]
[1765497102946,1.49555408,3239.4,3239.3,1.54722]
[1765497104649,1.49555408,3239.4,3239.3,0.15432]
[1765497105051,2.89329866,3239.4,3239.3,0.15432]
[1765497106859,2.89352578,3239.4,3239.3,0.15432]
[1765497109250,0.00345408,3239.4,3239.3,1.59632]
[1765497109556,0.4201,3241.0,3240.9,0.15425]
[1765497109557,0.4303,3241.0,3240.9,0.15425]
[1765497109856,3.6381,3241.5,3240.9,0.15425]
[1765497109857,0.4303,3241.5,3241.4,1.5521917]
[1765497110045,0.4303,3242.0,3241.4,1.5521917]
[1765497110046,0.4303,3242.0,3241.9,0.2708]
[1765497110359,1.1314,3242.5,3242.4,0.27077]
[1765497110552,1.13366868,3242.5,3242.4,3.47857]
[1765497110860,1.83416868,3242.5,3242.4,3.47857]
[1765497111654,3.23214038,3242.5,3242.4,0.15417]
[1765497112553,1.4016,3242.1,3242.0,3.2078]
[1765497112754,1.8319,3242.0,3241.6,3.36664291]
[1765497112959,1.4016,3241.7,3241.6,3.36664291]
[1765497113862,1.4016,3241.7,3241.6,3.36968596]
[1765497114564,1.4016,3241.7,3241.6,3.43148596]
[1765497114764,0.7011,3241.7,3241.6,3.49328596]
[1765497115451,1.4016,3241.7,3241.6,3.43148596]
[1765497116951,1.4016,3241.7,3241.6,3.49328596]
[1765497117760,1.4016,3241.7,3241.6,3.43148596]
[1765497119656,0.4303,3242.0,3241.9,0.1542]
[1765497119861,1.1314,3242.0,3241.9,0.2778]
[1765497121258,0.4303,3242.0,3241.9,0.2778]
[1765497121866,1.1314,3242.0,3241.9,0.2778]
[1765497123265,1.8319,3242.0,3241.9,0.2778]
[1765497124267,1.8319,3242.0,3241.9,0.216]
[1765497124466,1.8319,3242.0,3241.9,0.2778]
[1765497124665,1.8319,3242.0,3241.9,0.216]
[1765497125770,1.8319,3242.0,3241.9,0.2778]
[1765497126170,1.8319,3242.0,3241.9,0.216]
[1765497127266,1.8319,3242.0,3241.9,0.2778]
[1765497128166,1.8319,3242.0,3241.9,0.216]
[1765497129871,1.8319,3242.0,3241.9,0.1542]
[1765497131066,1.8319,3242.0,3241.9,0.216]
[1765497131269,1.8319,3242.0,3241.9,0.1542]
[1765497131765,1.8319,3242.0,3241.2,3.2078]
[1765497131766,1.4016,3241.3,3241.2,3.2078]
[1765497131967,1.4016,3241.3,3241.2,3.36203]
[1765497132359,1.4016,3241.3,3240.8,3.2078]
[1765497132564,1.4016,3240.9,3240.8,3.36205]
[1765497132867,2.79794743,3240.9,3240.8,0.1573062]
[1765497134671,1.4016,3240.9,3240.8,0.1573062]
[1765497138870,1.8741,3240.5,3240.4,3.2078]
[1765497139174,1.4385,3240.2,3240.1,0.15428]
[1765497139770,1.4385,3240.2,3240.1,0.84303822]
[1765497140073,1.44199462,3240.2,3240.1,0.84303822]
[1765497140274,1.44199462,3240.2,3240.1,0.15813822]
[1765497140873,1.44199462,3240.2,3240.1,0.84303822]
[1765497142475,1.44199462,3240.2,3240.1,0.15813822]
[1765497145176,1.44199462,3240.2,3240.1,0.84303822]
[1765497145680,1.44199462,3240.2,3240.1,0.15813822]
[1765497145976,1.44199462,3240.2,3240.1,0.84303822]
[1765497146582,1.44199462,3240.2,3240.1,0.15813822]
[1765497146773,0.00349462,3240.2,3240.1,3.822e-05]
[1765497147276,1.4385,3239.9,3239.8,0.00463291]
[1765497148280,1.4385,3239.9,3239.8,0.00825522]
[1765497150672,0.7112,3239.9,3239.8,0.00825522]
[1765497150876,1.4385,3239.9,3239.8,0.00825522]
[1765497152986,7.4385,3239.9,3239.8,0.00825522]
[1765497153189,1.4385,3239.1,3239.0,0.15433]
[1765497154076,1.4385,3239.1,3239.0,0.15770339]
[1765497154877,1.4385,3238.8,3238.7,0.00463291]
[1765497155076,4.6463,3238.8,3238.7,0.00463291]
[1765497156184,4.6463,3238.8,3238.7,0.00755117]
[1765497157687,4.6463,3239.3,3239.2,1.53853]
[1765497158387,4.6463,3239.3,3239.2,0.84903]
[1765497159384,4.6463,3239.3,3239.2,0.15433]
[1765497162590,4.6463,3239.3,3239.2,1.53853]
[1765497162591,11.566,3239.3,3239.2,1.53853]
[1765497163090,12.2933,3239.3,3239.2,1.53853]
[1765497163293,12.2933,3239.3,3239.2,0.15433]
[1765497163693,1.4385,3238.8,3238.7,3.21535117]
[1765497163894,1.4385,3238.8,3238.7,4.75390117]
[1765497164295,1.4385,3239.0,3238.9,1.53854]
[1765497164496,0.7112,3239.0,3238.9,1.53854]
[1765497165994,1.4385,3239.0,3238.9,0.15434]
[1765497166195,1.8688,3239.0,3238.9,0.15434]
[1765497171200,1.5135,3238.8,3238.7,3.21535117]
[1765497171399,2.91124678,3238.8,3238.7,3.21535117]
[1765497172495,6.11904678,3238.8,3238.7,0.00755117]
[1765497172691,4.7213,3238.8,3238.7,0.00755117]
[1765497172898,3.2078,3238.8,3238.7,1.49185117]
[1765497173089,3.963,3238.8,3238.7,1.49185117]
[1765497173496,4.7213,3238.8,3238.7,1.64620117]
[1765497175300,16.9173,3238.8,3238.7,1.64620117]
[1765497177000,3.963,3238.8,3238.7,1.64620117]
[1765497177302,4.7213,3239.3,3239.2,0.7468]
[1765497177494,5.65997604,3239.3,3239.2,0.7375]
[1765497177690,13.42897604,3239.3,3239.2,0.7375]
[1765497177890,17.85597604,3239.3,3239.2,0.7375]
[1765497178196,5.65997604,3239.3,3239.2,0.7375]
[1765497180093,5.65997604,3239.3,3239.2,1.4843]
[1765497180294,17.85497604,3239.3,3239.2,1.4843]
[1765497180494,17.85497604,3239.3,3239.2,0.7375]
[1765497180904,5.65997604,3239.3,3239.2,1.63863]
[1765497181195,1.51813291,3239.4,3239.3,0.89182]
[1765497181501,1.5135,3238.8,3238.7,0.16190117]
[1765497182997,1.5135,3238.8,3238.1,0.15438]
[1765497183201,1.5135,3238.2,3238.1,0.15438]
[1765497183395,1.5135,3238.2,3238.1,0.89188]
[1765497183596,1.5135,3238.2,3238.1,1.63868]
[1765497184302,1.5135,3238.2,3238.1,1.64109035]
[1765497184490,0.7552,3238.2,3238.1,1.64109035]
[1765497187003,8.3175,3238.4,3238.3,1.4843]
[1765497188002,8.3175,3238.4,3238.3,0.7375]
[1765497188194,6.804,3238.4,3238.2,0.15437]
[1765497188396,1.5135,3238.3,3238.2,1.63867]
[1765497197209,1.5135,3238.3,3238.2,0.15437]
[1765497197517,1.5135,3238.2,3238.1,0.00241035]
[1765497197711,1.5135,3238.2,3237.8,0.00463291]
[1765497197712,1.5135,3237.9,3237.8,0.00463291]
[1765497197919,1.6628,3237.5,3237.4,3.2078]
[1765497198412,1.4952,3237.3,3237.2,1.58692]
[1765497198611,1.49910218,3237.3,3237.2,1.58970896]
[1765497198917,1.49910218,3237.3,3237.2,0.89470896]
[1765497199711,1.49910218,3237.3,3237.2,1.59890896]
[1765497204624,0.75910218,3237.3,3237.2,1.59890896]
[1765497205425,0.00390218,3237.3,3237.2,1.59890896]
[1765497205818,0.72750218,3237.3,3237.2,1.59890896]
[1765497206020,0.00390218,3237.3,3237.2,1.59890896]
[1765497206220,1.48270218,3237.3,3237.2,1.59890896]
[1765497206820,0.00390218,3237.3,3237.2,1.59890896]
[1765497209520,1.48270218,3237.3,3237.2,1.59890896]
[1765497212331,1.48270218,3237.3,3237.2,0.15720896]
[1765497222235,1.48270218,3237.3,3237.2,0.00278896]
[1765497222539,1.48270218,3237.3,3236.9,0.00463291]
[1765497222540,1.9096,3237.0,3236.9,0.00463291]
[1765497222738,6.5168325,3237.0,3236.9,0.00463291]
[1765497223328,6.5168325,3237.0,3236.9,0.00831803]
[1765497223538,1.4788,3236.2,3236.1,0.89467]
[1765497224029,1.4788,3236.2,3236.1,1.59887]
[1765497224436,4.6866,3236.4,3236.3,1.4444]
[1765497224631,4.6866,3236.4,3236.3,1.44727666]
[1765497225337,4.6866,3236.4,3236.3,0.74307666]
[1765497225943,4.6866,3236.4,3236.3,1.44727666]
[1765497227037,4.6866,3236.4,3236.3,0.74307666]
[1765497228141,4.6866,3236.4,3236.3,0.00287666]
[1765497228940,4.6866,3236.4,3236.3,0.74307666]
[1765497231543,4.6866,3236.4,3236.3,0.89753666]
[1765497231744,4.6866,3236.4,3236.3,1.59493666]
[1765497232042,4.6866,3236.4,3236.3,0.89753666]
[1765497233741,4.6866,3236.4,3236.3,1.59493666]
[1765497233941,3.9429,3236.9,3236.8,1.4564]
[1765497234146,4.6841,3236.9,3236.8,1.4564]
[1765497235644,4.6841,3236.9,3236.8,0.759]
[1765497237340,1.4763,3236.7,3236.6,1.61085]
[1765497237939,0.7351,3236.7,3236.6,1.61085]
[1765497238241,2.87623144,3236.7,3236.6,0.15445]
[1765497239342,1.4763,3236.7,3236.6,0.15445]
[1765497240946,6.08403144,3236.7,3236.6,0.15445]
[1765497241644,1.4763,3236.4,3236.3,0.00287666]
[1765497241849,2.87623144,3236.4,3236.3,0.00287666]
[1765497242553,1.4763,3236.1,3236.0,0.00308865]
[1765497242852,6.08403144,3236.1,3236.0,0.00308865]
[1765497245350,7.48396288,3236.1,3236.0,0.00308865]
[1765497245545,0.7351,3234.7,3234.6,4.6642]
[1765497245746,0.23640764,3234.7,3234.6,4.6642]
[1765497246052,2.37753908,3234.7,3234.6,3.9668]
[1765497246346,1.4763,3234.1,3234.0,0.4331]
[1765497246547,1.4763,3234.1,3234.0,1.8895]
[1765497246946,12.69423144,3234.1,3234.0,1.1921]
[1765497247345,12.69423144,3234.1,3234.0,1.8895]
[1765497247545,12.69423144,3234.1,3234.0,1.1921]
[1765497248148,3.2078,3234.3,3234.2,1.4564]
[1765497248345,0.00463291,3234.4,3234.3,1.4564]
[1765497248653,0.00463291,3234.4,3234.3,3.01089144]
[1765497249550,0.00463291,3234.4,3234.3,1.61096]
[1765497249745,0.73973291,3234.4,3234.3,1.61096]
[1765497249951,2.88086435,3234.4,3234.3,1.61096]
[1765497251258,1.48093291,3234.4,3234.3,1.61096]
[1765497251658,0.73973291,3234.4,3234.3,1.61096]
[1765497252359,1.48093291,3234.4,3234.3,1.61096]
[1765497253059,2.88086435,3234.4,3234.3,0.91356]
[1765497253557,1.48093291,3234.4,3234.3,0.91356]
[1765497254060,1.4763,3234.2,3234.1,3.2078]
[1765497254255,0.7351,3234.2,3234.1,4.6642]
[1765497254757,0.00463291,3234.4,3234.3,1.61096]
[1765497256054,0.00344096,3234.7,3234.6,1.54925]
[1765497256257,0.00344096,3234.7,3234.6,2.94918144]
[1765497256955,3.2078,3235.5,3235.4,1.3947]
[1765497257270,1.4652,3235.4,3235.3,1.54921]
[1765497257461,2.86513144,3235.4,3235.3,0.15451]
[1765497258157,2.86752774,3235.4,3235.3,0.15754714]
[1765497258461,2.86752774,3235.4,3235.3,0.85484714]
[1765497259357,1.4675963,3235.4,3235.3,0.85484714]
[1765497259661,2.86752774,3235.4,3235.3,0.15754714]
[1765497262764,2.86752774,3235.4,3235.3,0.91064714]
[1765497263662,2.86752774,3235.4,3235.3,0.15754714]
[1765497264059,2.86752774,3235.4,3235.3,0.00303714]
[1765497264261,12.40952774,3235.4,3235.3,0.00303714]
[1765497264860,12.40952774,3235.4,3235.3,3.714e-05]
[1765497266565,15.09252774,3235.4,3235.3,3.714e-05]
[1765497267363,1.4445,3234.9,3234.8,0.15453]
[1765497267558,2.84443144,3234.9,3234.8,0.15453]
[1765497267762,0.7319,3234.1,3234.0,2.10247]
[1765497267970,0.7319,3234.2,3234.1,1.66937]
[1765497268864,1.4445,3234.2,3234.1,1.66937]
[1765497269062,1.4445,3234.2,3234.1,0.15457]
[1765497269459,1.4445,3233.8,3233.7,3.2078]
[1765497269662,1.4445,3233.6,3233.4,0.1546]
[1765497269968,2.84443144,3233.6,3233.4,0.1546]
[1765497270168,1.4445,3233.5,3233.4,0.1546]
[1765497270473,1.4445,3233.5,3233.0,0.70614516]
[1765497270474,1.4445,3233.1,3233.0,1.2063]
[1765497270674,1.44683177,3233.1,3233.0,1.968]
[1765497271069,1.44683177,3233.1,3232.8,3.2078]
[1765497271070,1.4445,3232.9,3232.8,3.2078]
[1765497271276,0.7319,3232.6,3232.5,1.968]
[1765497271469,2.84443144,3232.6,3232.5,0.45606416]
[1765497271670,3.2078,3233.0,3232.5,1.97086416]
[1765497271866,1.4445,3232.6,3232.5,1.97086416]
[1765497272070,1.4445,3232.6,3232.5,0.45606416]
[1765497272272,1.4445,3232.6,3232.5,0.00286416]
[1765497272463,4.6523,3232.6,3232.5,0.00286416]
[1765497274576,3.9397,3232.6,3232.5,1.97086416]
[1765497275073,4.6523,3232.6,3232.5,1.97086416]
[1765497275572,4.6523,3232.6,3232.5,0.00286416]
[1765497275868,4.6523,3232.6,3232.5,1.97086416]
[1765497276074,3.9397,3232.6,3232.5,1.97086416]
[1765497276681,3.2078,3232.6,3232.5,1.97086416]
[1765497277074,3.2078,3233.0,3232.5,0.45606416]
[1765497277274,3.2078,3233.0,3232.9,1.5148]
[1765497277575,3.9397,3233.0,3232.9,1.5148]
[1765497278182,3.2078,3233.0,3232.9,1.66943]
[1765497281879,0.00233177,3233.1,3233.0,2.12262]
[1765497286987,3.2078,3233.8,3233.5,0.4532]
[1765497287193,3.9397,3233.8,3233.7,1.66939]
[1765497287491,3.2078,3233.8,3233.7,1.66939]
[1765497287686,0.00463291,3234.1,3234.0,2.12257]
[1765497287986,1.45264612,3234.1,3234.0,2.12257]
[1765497288892,1.45264612,3234.1,3234.0,1.36087]
[1765497289195,1.45264612,3234.1,3234.0,2.10777]
[1765497289893,0.00814612,3234.1,3234.0,2.10777]
[1765497291889,1.8111,3235.0,3234.9,1.60433]
[1765497292084,1.8111,3235.0,3234.9,0.85743]
[1765497292888,1.81379947,3235.0,3234.9,1.60791202]
[1765497293086,1.81379947,3235.0,3234.9,0.15811202]
[1765497293392,1.81379947,3235.0,3234.9,0.86101202]
[1765497293795,1.81379947,3235.0,3234.9,1.60791202]
[1765497293993,1.81379947,3235.0,3234.9,0.15811202]
[1765497295588,1.81379947,3235.0,3234.9,0.86101202]
[1765497295796,0.00269947,3235.0,3234.9,1.60791202]
[1765497296189,0.00269947,3235.0,3234.9,1.85329351]
[1765497296984,0.00269947,3235.0,3234.9,1.60791202]
[1765497297388,0.70349947,3235.0,3234.9,1.60791202]
[1765497297900,1.81379947,3235.0,3234.9,0.86101202]
[1765497298100,1.81379947,3235.0,3234.9,1.60791202]
[1765497298296,1.81379947,3235.0,3234.9,0.15811202]
[1765497299004,1.81379947,3235.0,3234.9,0.86101202]
[1765497299301,1.81379947,3235.0,3234.9,1.60791202]
[1765497300299,1.81379947,3235.0,3234.9,0.86101202]
[1765497300703,1.81379947,3235.0,3234.9,1.60791202]
[1765497301100,0.00269947,3235.0,3234.9,1.60791202]
[1765497302904,0.0046403,3235.3,3235.2,1.60432]
[1765497303106,0.0046403,3235.3,3235.2,4.81212]
[1765497303611,3.9086,3235.8,3235.7,1.60429]
[1765497303812,0.00353851,3235.8,3235.7,1.60429]
[1765497306314,0.70433851,3235.8,3235.7,1.60429]
[1765497307013,0.00353851,3235.8,3235.7,1.60429]
[1765497308712,1.39643851,3235.8,3235.7,1.60429]
[1765497308908,0.70433851,3235.8,3235.7,1.60429]
[1765497309107,0.00353851,3235.8,3235.7,1.60429]
[1765497311411,1.39643851,3235.8,3235.7,1.60429]
[1765497311916,0.70433851,3235.8,3235.7,1.60429]
[1765497312417,1.39643851,3235.8,3235.7,1.60429]
[1765497312618,1.39643851,3235.8,3235.7,0.85739]
[1765497313116,1.39643851,3235.8,3235.7,1.60429]
[1765497313720,0.00353851,3235.8,3235.7,1.60429]
[1765497318419,1.43573851,3235.8,3235.7,0.85559]
[1765497318612,1.43573851,3235.8,3235.7,1.55359]
[1765497319421,0.72363851,3235.8,3235.7,1.55359]
[1765497319920,0.00353851,3235.8,3235.7,1.55359]
[1765497327422,0.0046403,3236.1,3236.0,2.06988]
[1765497327724,1.8328,3237.0,3236.9,1.64614]
[1765497327915,2.78506644,3237.0,3236.9,1.64614]
[1765497328517,2.78815231,3237.0,3236.9,1.64614]
[1765497329519,2.78815231,3237.0,3236.9,0.89174]
[1765497329720,2.78815231,3237.0,3236.9,0.15444]
[1765497330123,1.4146,3236.7,3236.6,0.0046403]
[1765497330324,1.4146,3236.2,3236.1,0.15447]
[1765497330627,2.36686644,3236.2,3236.1,0.15447]
[1765497335524,1.4146,3235.9,3235.8,0.0046403]
[1765497335727,2.36686644,3235.9,3235.8,0.0046403]
[1765497336132,5.57466644,3235.9,3235.8,0.0046403]
[1765497336830,1.4146,3235.2,3235.1,3.2078]
[1765497337229,1.4146,3235.2,3235.1,3.9451]
[1765497337432,1.4146,3235.2,3235.1,4.6995]
[1765497337933,0.4544,3235.5,3235.4,0.7373]
[1765497338136,1.8736403,3235.5,3235.4,0.15451]
[1765497341435,1.8736403,3235.5,3235.4,0.89181]
[1765497341640,1.8736403,3235.5,3235.4,0.15451]
[1765497349537,1.8736403,3235.5,3235.4,0.89181]
[1765497349932,1.8736403,3235.5,3235.4,0.15451]
[1765497353741,5.0814403,3235.5,3235.4,0.15451]
[1765497358747,6.48268651,3235.5,3235.4,0.15451]
[1765497360351,7.43473822,3235.5,3235.4,0.15451]
[1765497360553,1.9252,3235.0,3234.9,0.00358202]
[1765497360849,3.32644621,3235.0,3234.9,0.15811202]
[1765497361153,3.32644621,3235.0,3234.9,1.62361202]
[1765497362454,3.32644621,3235.0,3234.9,0.87761202]
[1765497364556,3.32644621,3235.0,3234.9,0.15811202]
[1765497365356,3.32644621,3235.0,3234.9,1.62361202]
[1765497365556,1.9252,3235.0,3234.9,1.62361202]
[1765497365759,1.1696,3235.0,3234.9,1.62361202]
[1765497366063,1.489,3235.4,3235.3,0.87401]
[1765497366253,0.7334,3235.4,3235.3,1.62001]
[1765497366556,4.4002403,3235.5,3235.4,1.62001]
[1765497366957,5.1558403,3235.5,3235.4,0.15451]
[1765497370853,1.9480403,3235.5,3235.4,0.15451]
[1765497371056,5.1558403,3235.5,3235.4,0.15451]
[1765497371849,6.55708651,3235.5,3235.4,0.15451]
[1765497373656,6.55708651,3235.5,3235.4,0.87401]
[1765497374365,6.55708651,3235.5,3235.4,0.15451]
[1765497377766,5.1558403,3235.5,3235.4,0.15451]
[1765497377959,5.1558403,3235.5,3235.4,0.87511]
[1765497378458,5.1558403,3235.5,3235.4,1.58271]
[1765497378765,5.1384403,3235.5,3235.4,0.87511]
[1765497378965,5.1384403,3235.5,3235.4,0.15451]
[1765497379867,5.1384403,3235.5,3235.4,1.60821]
[1765497380060,5.1384403,3235.5,3235.4,0.88081]
[1765497380261,5.1384403,3235.5,3235.4,1.60821]
[1765497381469,3.2124403,3235.5,3235.4,3.00945621]
[1765497382569,0.0046403,3235.5,3235.4,3.00945621]
[1765497382765,4.6865,3236.3,3236.2,0.88077]
[1765497383767,4.6865,3236.3,3236.2,0.15447]
[1765497384067,4.6865,3236.3,3236.2,0.88077]
[1765497384263,4.6865,3236.3,3236.2,1.60817]
[1765497384464,3.2078,3236.3,3236.2,3.00941621]
[1765497384972,4.6865,3236.3,3236.2,3.00941621]
[1765497385572,6.08774621,3236.3,3236.2,0.15447]
[1765497385972,4.6865,3236.3,3236.2,1.60817]
[1765497386472,3.2078,3236.3,3236.2,1.60817]
[1765497386872,3.9399,3236.3,3236.2,1.60817]
[1765497388077,4.6865,3236.3,3236.2,1.60817]
[1765497388970,4.6865,3236.3,3236.2,0.15447]
[1765497389171,4.6865,3236.3,3236.2,0.88077]
[1765497389571,4.6865,3236.3,3236.2,1.60817]
[1765497391177,0.0046403,3236.6,3236.2,3.00941621]
[1765497391376,0.73518587,3237.0,3236.9,1.60814]
[1765497391576,0.00308587,3237.0,3236.9,6.21718621]
[1765497393679,1.90008587,3237.0,3236.9,6.21718621]
[1765497394076,1.90008587,3237.0,3236.9,4.08854]
[1765497394283,3.30133208,3237.0,3236.9,3.36224]
[1765497394783,1.90008587,3237.0,3236.9,4.81594]
[1765497395884,3.30133208,3237.0,3236.9,3.36224]
[1765497397380,1.90008587,3237.0,3236.9,3.36224]
[1765497397682,1.90008587,3237.0,3236.9,4.08854]
[1765497397980,1.90008587,3237.0,3236.9,4.81594]
[1765497398484,1.15348587,3237.0,3236.9,4.81594]
[1765497398784,1.90008587,3237.0,3236.9,4.81594]
[1765497399680,1.90008587,3237.0,3236.9,3.36224]
[1765497399884,1.90008587,3237.0,3236.9,4.08854]
[1765497400887,1.90008587,3237.0,3236.9,4.81594]
[1765497401086,1.15348587,3237.0,3236.9,4.81594]
[1765497401385,1.90008587,3237.0,3236.9,4.81594]
[1765497404687,1.90008587,3237.0,3236.9,4.08854]
[1765497404886,1.90008587,3237.0,3236.9,4.81594]
[1765497405385,1.90008587,3237.0,3236.9,4.08854]
[1765497405887,1.90008587,3237.0,3236.9,4.81594]
[1765497407084,0.42138587,3237.0,3236.9,4.81594]
[1765497407289,0.00308587,3237.0,3236.9,4.81594]
[1765497407785,0.73518587,3237.0,3236.9,4.81594]
[1765497411290,0.00308587,3237.0,3236.9,4.81594]
[1765497411790,1.84328587,3237.0,3236.9,4.08854]
[1765497411993,3.24453208,3237.0,3236.9,3.36224]
[1765497412994,1.84328587,3237.0,3236.9,4.06044]
[1765497413192,1.84328587,3237.0,3236.9,4.81004]
[1765497416391,1.84328587,3237.0,3236.9,4.06044]
[1765497416896,1.84328587,3237.0,3236.9,3.36224]
[1765497418095,1.84328587,3237.0,3236.9,4.81004]
[1765497418694,1.84328587,3237.0,3236.9,4.06044]
[1765497419803,1.84328587,3237.0,3236.9,3.36224]
[1765497420099,1.4079,3236.7,3236.6,0.0046403]
[1765497420306,2.80728359,3236.7,3236.6,0.0046403]
[1765497420507,1.4079,3236.7,3236.6,1.4524403]
[1765497420897,1.84328587,3237.0,3236.9,1.4478]
[1765497421102,0.00308587,3237.0,3236.9,1.4478]
[1765497421701,0.00308587,3237.0,3236.9,4.6556]
[1765497422103,0.00308587,3237.0,3236.9,4.81004]
[1765497424107,0.72368587,3237.0,3236.9,4.81004]
[1765497424303,1.84328587,3237.0,3236.9,4.81004]
[1765497424806,1.15598587,3237.0,3236.9,4.81004]
[1765497425004,0.43538587,3237.0,3236.9,4.81004]
[1765497425207,0.00308587,3237.0,3236.9,4.81004]
[1765497436822,1.15208587,3237.0,3236.9,4.75394]
[1765497437019,0.73668587,3237.0,3236.9,4.75394]
[1765497437222,1.91198587,3237.0,3236.9,4.75394]
[1765497437721,1.16508587,3237.0,3236.9,4.75394]
[1765497437921,0.00308587,3237.0,3236.9,4.75394]
[1765497438321,3.31136946,3237.0,3236.9,0.15444]
[1765497441725,1.91198587,3237.0,3236.9,0.84734]
[1765497441925,1.91198587,3237.0,3236.9,0.15444]
[1765497442528,1.91198587,3237.0,3236.9,0.91484]
[1765497443233,1.91198587,3237.0,3236.9,0.15444]
[1765497443526,9.31136946,3237.0,3236.6,0.0046403]
[1765497443731,1.9286,3236.5,3236.4,0.15446]
[1765497445429,1.4752,3235.8,3235.7,4.87929]
[1765497445933,0.741,3235.8,3235.7,4.87929]
[1765497446429,1.4752,3235.8,3235.7,4.87929]
[1765497446933,0.741,3235.8,3235.7,4.87929]
[1765497447131,1.4752,3235.8,3235.7,4.87929]
[1765497447523,1.4752,3235.8,3235.7,4.12269]
[1765497447732,1.4752,3235.8,3235.7,3.36229]
[1765497447933,0.741,3235.8,3235.7,4.87929]
[1765497448528,1.1944,3236.0,3235.9,1.67148]
[1765497448733,4.683,3236.2,3236.1,1.517]
[1765497449134,4.683,3236.2,3236.1,0.7604]
[1765497450133,3.2078,3236.2,3236.1,1.67147]
[1765497451038,1.4752,3236.2,3236.1,1.67147]
[1765497451236,0.741,3236.2,3236.1,1.67147]
[1765497451834,1.4752,3236.2,3236.1,1.67147]
[1765497453838,1.4752,3235.6,3235.5,0.1545]